bitfinex-derivatives/quotes_ETHF0:USTF0_20260113
["timestamp","ask_amount","ask_price","bid_price","bid_amount"]
[1768270974729,0.92894669,3105.0,3103.8,4.19642391]
[1768270974925,0.92894669,3104.9,3103.8,4.19642391]
[1768270975125,0.00248574,3105.1,3103.8,4.19642391]
[1768270975322,0.928898,3105.0,3103.8,4.19642391]
[1768270975524,0.928898,3104.9,3103.8,4.19642391]
[1768270975724,0.00248574,3105.1,3103.8,4.19642391]
[1768270975924,0.92889726,3105.0,3103.8,4.19642391]
[1768270976125,0.92889726,3104.9,3103.8,4.19642391]
[1768270976325,0.00248574,3105.1,3103.8,4.19642391]
[1768270976527,0.92887485,3105.0,3103.8,4.19642391]
[1768270976731,0.92887485,3104.9,3103.8,4.19642391]
[1768270976929,0.00248574,3105.1,3103.8,4.19642391]
[1768270977134,0.9288698,3105.0,3103.8,4.19642391]
[1768270977326,0.9288698,3104.9,3103.8,4.19642391]
[1768270977531,0.00248574,3105.1,3103.8,4.19642391]
[1768270977730,0.92885645,3105.0,3103.8,4.19642391]
[1768270977926,0.92885645,3104.9,3103.8,4.19642391]
[1768270978127,0.00248574,3105.1,3103.8,4.19642391]
[1768270978332,0.92890288,3105.0,3103.8,4.19642391]
[1768270978632,0.92890288,3104.9,3103.8,4.19642391]
[1768270978934,0.00248574,3105.1,3103.8,4.19642391]
[1768270979134,0.9289052,3105.0,3103.8,4.19642391]
[1768270979430,0.9289052,3104.9,3103.8,4.19642391]
[1768270979633,0.00248574,3105.1,3103.8,4.19642391]
[1768270979833,0.92898094,3105.0,3103.8,4.19642391]
[1768270980038,0.92898094,3104.9,3103.8,4.19642391]
[1768270980235,0.92898094,3104.8,3103.8,4.19642391]
[1768270980435,0.00248574,3105.1,3103.8,4.19642391]
[1768270980627,0.9291027,3105.0,3103.8,4.19642391]
[1768270980826,0.9291027,3104.9,3103.8,4.19642391]
[1768270981026,0.9291027,3104.8,3103.8,4.19642391]
[1768270981227,0.00248574,3105.1,3103.8,4.19642391]
[1768270981430,0.92923172,3105.0,3103.8,4.19642391]
[1768270981631,0.92923172,3104.9,3103.8,4.19642391]
[1768270981928,0.92923172,3104.8,3103.8,4.19642391]
[1768270982127,0.00248574,3105.1,3103.8,4.19642391]
[1768270982329,0.9293891,3105.0,3103.8,4.19642391]
[1768270982529,0.9293891,3104.9,3103.8,4.19642391]
[1768270982824,0.9293891,3104.8,3103.8,4.19642391]
[1768270983028,0.00248574,3105.1,3103.8,4.19642391]
[1768270983337,0.92965091,3105.0,3103.8,4.19642391]
[1768270983528,0.92965091,3104.9,3103.8,4.19642391]
[1768270983729,0.92965091,3104.8,3103.8,4.19642391]
[1768270983937,0.00482827,3104.7,3103.8,4.19642391]
[1768270989341,0.00248574,3105.1,3103.8,4.19642391]
[1768270989538,0.92958248,3105.0,3104.0,3.59912893]
[1768270989739,0.92958248,3104.9,3104.0,3.59912893]
[1768270990041,0.92958248,3104.8,3104.0,3.59912893]
[1768270990247,0.00248574,3105.1,3104.0,3.59912893]
[1768270990437,0.92959862,3105.0,3104.0,3.59912893]
[1768270990638,0.92959862,3104.9,3104.0,3.59912893]
[1768270990839,0.92959862,3104.8,3104.0,3.59912893]
[1768270991039,0.00248574,3105.1,3104.0,3.59912893]
[1768270991239,0.92961827,3105.0,3104.0,3.59912893]
[1768270991440,0.92961827,3104.9,3104.0,3.59912893]
[1768270991643,0.92961827,3104.8,3104.0,3.59912893]
[1768270991843,0.00248574,3105.1,3104.0,3.59912893]
[1768270992039,0.92963492,3105.0,3104.0,3.59912893]
[1768270992246,0.92963492,3104.9,3104.0,3.59912893]
[1768270992444,0.92963492,3104.8,3104.0,3.59912893]
[1768270992643,0.00248574,3105.1,3104.0,3.59912893]
[1768270992943,0.92966928,3105.0,3104.0,3.59912893]
[1768270993143,0.92966928,3104.9,3104.0,3.59912893]
[1768270993342,0.92966928,3104.8,3104.0,3.59912893]
[1768270993543,0.00248574,3105.1,3104.0,3.59912893]
[1768270993743,0.9297145,3105.0,3104.0,3.59912893]
[1768270994042,0.9297145,3104.9,3104.0,3.59912893]
[1768270994237,0.9297145,3104.8,3104.0,3.59912893]
[1768270994438,0.00248574,3105.1,3104.0,3.59912893]
[1768270994638,0.92975665,3105.0,3104.0,3.59912893]
[1768270994839,0.92975665,3104.9,3104.0,3.59912893]
[1768270995048,0.92975665,3104.8,3104.0,3.59912893]
[1768270995247,0.00248574,3105.1,3104.0,3.59912893]
[1768270995544,0.92980639,3105.0,3104.0,3.59912893]
[1768270995746,0.92980639,3104.9,3104.0,3.59912893]
[1768270995943,0.92980639,3104.8,3104.0,3.59912893]
[1768270996145,0.00248574,3105.1,3104.0,3.59912893]
[1768270996346,0.92944585,3105.0,3104.0,3.59912893]
[1768270996539,0.92944585,3104.9,3104.0,3.59912893]
[1768270996739,0.92944585,3104.8,3104.0,3.59912893]
[1768270996945,0.00248574,3105.1,3104.0,3.59912893]
[1768270997139,0.92944166,3105.0,3104.0,3.59912893]
[1768270997343,0.92944166,3104.9,3104.0,3.59912893]
[1768270997549,0.92944166,3104.8,3104.0,3.59912893]
[1768270997750,0.92944166,3104.7,3104.0,3.59912893]
[1768270997941,0.00248574,3105.1,3104.0,3.59912893]
[1768270998137,0.92952018,3105.0,3104.0,3.59912893]
[1768270998339,0.00248574,3105.1,3104.2,3.49123736]
[1768270998544,2.3133483,3105.7,3104.2,3.49123736]
[1768270998849,0.34951436,3105.6,3104.2,3.49123736]
[1768270999050,0.34951436,3105.5,3104.2,3.49123736]
[1768270999248,3.8483483,3105.8,3104.2,3.49123736]
[1768270999447,0.34945862,3105.7,3104.2,3.49123736]
[1768270999646,0.34945862,3105.6,3104.2,3.49123736]
[1768271001548,1.53896286,3105.7,3104.4,4.32270013]
[1768271002050,0.00396286,3105.7,3104.4,4.32270013]
[1768271002246,1.53896286,3105.7,3104.4,4.32270013]
[1768271002950,0.00396286,3105.7,3104.4,4.32270013]
[1768271003151,0.00396286,3105.7,3104.7,4.32270013]
[1768271004844,0.00396286,3105.7,3105.0,4.32270013]
[1768271005048,0.1,3106.3,3105.0,4.32270013]
[1768271005850,0.1,3106.3,3105.0,3.49123736]
[1768271006153,0.10364795,3106.3,3105.0,3.49123736]
[1768271007249,0.10364795,3106.3,3105.2,4.32270013]
[1768271007459,0.10364795,3106.3,3105.2,4.32497763]
[1768271008552,0.00482827,3106.1,3105.2,4.32497763]
[1768271009754,0.10364795,3106.3,3105.2,4.32497763]
[1768271010656,0.10364795,3106.3,3105.5,4.32270013]
[1768271011357,0.10364795,3106.3,3105.6,0.00482827]
[1768271025354,0.10364795,3106.3,3105.7,0.83043691]
[1768271031263,0.10364795,3106.3,3105.6,0.83526518]
[1768271036267,0.92375342,3106.2,3105.6,0.83526518]
[1768271036566,0.10364795,3106.3,3105.6,0.83526518]
[1768271036767,0.92375342,3106.2,3105.6,0.83526518]
[1768271036963,0.10364795,3106.3,3105.6,0.83526518]
[1768271037164,0.92375342,3106.2,3105.6,0.83526518]
[1768271037366,0.10364795,3106.3,3105.6,0.83526518]
[1768271037564,0.92432126,3106.2,3105.6,0.83526518]
[1768271037764,0.10364795,3106.3,3105.6,0.83526518]
[1768271037966,0.92432126,3106.2,3105.6,0.83526518]
[1768271038166,0.10364795,3106.3,3105.6,0.83526518]
[1768271038365,0.92432508,3106.2,3105.6,0.83526518]
[1768271038570,0.10364795,3106.3,3105.6,0.83526518]
[1768271038766,0.92432508,3106.2,3105.6,0.83526518]
[1768271038965,0.10364795,3106.3,3105.6,0.83526518]
[1768271039166,0.92432508,3106.2,3105.6,0.83526518]
[1768271039368,0.10364795,3106.3,3105.6,0.83526518]
[1768271039566,0.92434611,3106.2,3105.6,0.83526518]
[1768271039767,0.10364795,3106.3,3105.6,0.83526518]
[1768271039969,0.92434611,3106.2,3105.6,0.83526518]
[1768271040269,0.10364795,3106.3,3105.6,0.83526518]
[1768271040470,0.92435589,3106.2,3105.6,0.83526518]
[1768271040770,0.10364795,3106.3,3105.6,0.83526518]
[1768271040971,0.92435589,3106.2,3105.6,0.83526518]
[1768271041173,0.10364795,3106.3,3105.6,0.83526518]
[1768271041365,0.92434384,3106.2,3105.6,0.83526518]
[1768271041570,0.10364795,3106.3,3105.6,0.83526518]
[1768271041770,0.92434546,3106.2,3105.6,0.83526518]
[1768271041972,0.10364795,3106.3,3105.6,0.83526518]
[1768271042171,0.92434562,3106.2,3105.6,0.83526518]
[1768271042373,0.10364795,3106.3,3105.6,0.83526518]
[1768271042571,0.92434779,3106.2,3105.6,0.83526518]
[1768271042770,0.10364795,3106.3,3105.6,0.83526518]
[1768271042974,0.92434764,3106.2,3105.6,0.83526518]
[1768271043177,0.10364795,3106.3,3105.6,0.83526518]
[1768271043377,0.92434839,3106.2,3105.6,0.83526518]
[1768271043675,0.10364795,3106.3,3105.6,0.83526518]
[1768271043874,0.92434967,3106.2,3105.6,0.83526518]
[1768271044076,0.10364795,3106.3,3105.6,0.83526518]
[1768271044378,0.92434982,3106.2,3105.6,0.83526518]
[1768271044583,0.10364795,3106.3,3105.6,0.83526518]
[1768271044771,0.92436565,3106.2,3105.6,0.83526518]
[1768271045077,0.10364795,3106.3,3105.6,0.83526518]
[1768271045277,0.9243517,3106.2,3105.6,0.83526518]
[1768271045477,0.10364795,3106.3,3105.6,0.83526518]
[1768271045679,0.92435095,3106.2,3105.6,0.83526518]
[1768271045975,0.10364795,3106.3,3105.6,0.83526518]
[1768271046276,0.92435095,3106.2,3105.6,0.83526518]
[1768271046476,0.10364795,3106.3,3105.6,0.83526518]
[1768271046777,0.92435104,3106.2,3105.6,0.83526518]
[1768271046981,0.10364795,3106.3,3105.6,0.83526518]
[1768271047477,0.92435013,3106.2,3105.6,0.83526518]
[1768271047677,0.10364795,3106.3,3105.6,0.83526518]
[1768271047872,0.92435088,3106.2,3105.6,0.83526518]
[1768271048081,0.10364795,3106.3,3105.6,0.83526518]
[1768271048378,0.92435015,3106.2,3105.6,0.83526518]
[1768271048672,0.10364795,3106.3,3105.6,0.83526518]
[1768271048878,0.92435115,3106.2,3105.6,0.83526518]
[1768271049078,0.10364795,3106.3,3105.6,0.83526518]
[1768271049267,0.9243513,3106.2,3105.6,0.83526518]
[1768271049471,0.10364795,3106.3,3105.6,0.83526518]
[1768271049670,0.92435125,3106.2,3105.6,0.83526518]
[1768271049972,0.10364795,3106.3,3105.6,0.83526518]
[1768271050170,0.92435125,3106.2,3105.6,0.83526518]
[1768271050470,0.10364795,3106.3,3105.6,0.83526518]
[1768271050670,0.92435083,3106.2,3105.6,0.83526518]
[1768271050871,0.10364795,3106.3,3105.6,0.83526518]
[1768271051170,0.92435083,3106.2,3105.6,0.83526518]
[1768271051370,0.10364795,3106.3,3105.6,0.83526518]
[1768271051572,0.92437777,3106.2,3105.6,0.83526518]
[1768271051876,0.10364795,3106.3,3105.6,0.83526518]
[1768271052076,0.92437732,3106.2,3105.6,0.83526518]
[1768271052372,0.10364795,3106.3,3105.6,0.83526518]
[1768271052580,0.92436994,3106.2,3105.6,0.83526518]
[1768271052778,0.10364795,3106.3,3105.6,0.83526518]
[1768271052967,0.92436994,3106.2,3105.6,0.83526518]
[1768271053171,0.10364795,3106.3,3105.6,0.83526518]
[1768271053371,0.92436922,3106.2,3105.6,0.83526518]
[1768271053577,0.10364795,3106.3,3105.6,0.83526518]
[1768271053782,0.92436449,3106.2,3105.6,0.83526518]
[1768271053975,0.10364795,3106.3,3105.6,0.83526518]
[1768271054176,0.92436449,3106.2,3105.6,0.83526518]
[1768271054377,0.10364795,3106.3,3105.6,0.83526518]
[1768271054580,0.92436122,3106.2,3105.6,0.83526518]
[1768271054781,0.10364795,3106.3,3105.6,0.83526518]
[1768271055089,0.83043691,3105.7,3105.2,0.0022775]
[1768271055272,0.83043691,3105.7,3104.7,0.83043691]
[1768271056277,4.46443141,3106.1,3105.1,0.83043691]
[1768271056480,0.92388673,3106.0,3105.1,0.83043691]
[1768271056679,0.92388673,3105.9,3105.1,0.83043691]
[1768271056979,4.46443141,3106.1,3105.1,0.83043691]
[1768271057179,0.92389489,3106.0,3105.1,0.83043691]
[1768271057380,0.92389489,3105.9,3104.9,0.00482827]
[1768271057681,4.46443141,3106.1,3105.0,0.83043691]
[1768271057876,0.92369122,3106.0,3105.0,0.83043691]
[1768271058178,0.92369122,3105.9,3105.0,0.83043691]
[1768271058378,4.46443141,3106.1,3105.0,0.83043691]
[1768271058574,0.9235333,3106.0,3105.0,0.83043691]
[1768271058771,0.9235333,3105.9,3105.0,0.83043691]
[1768271058972,4.46443141,3106.1,3105.0,0.83043691]
[1768271059174,0.92355555,3106.0,3105.0,0.83043691]
[1768271059385,0.92355555,3105.9,3105.0,0.83043691]
[1768271059683,4.46443141,3106.1,3105.0,0.83043691]
[1768271059874,0.92340547,3106.0,3105.0,0.83043691]
[1768271060076,0.92340547,3105.9,3105.0,0.83043691]
[1768271060284,4.46443141,3106.1,3105.0,0.83043691]
[1768271060478,0.92327838,3106.0,3105.0,0.83043691]
[1768271060674,0.92327838,3105.9,3105.0,0.83043691]
[1768271060874,4.46443141,3106.1,3105.0,0.83043691]
[1768271061071,0.92327771,3106.0,3105.0,0.83043691]
[1768271061282,0.92327771,3105.9,3105.0,0.83043691]
[1768271061485,4.46443141,3106.1,3105.0,0.83043691]
[1768271061685,0.92317823,3106.0,3105.0,0.83043691]
[1768271061886,0.92317823,3105.9,3105.0,0.83043691]
[1768271062086,4.46443141,3106.1,3105.0,0.83043691]
[1768271062382,0.92315215,3106.0,3105.0,0.83043691]
[1768271062573,0.92315215,3105.9,3105.2,0.83043691]
[1768271062777,0.10364795,3106.3,3105.4,0.83043691]
[1768271062982,0.92304852,3106.2,3105.4,0.83043691]
[1768271063286,0.92304852,3106.1,3105.4,0.83043691]
[1768271063484,0.92304852,3106.0,3105.4,0.83043691]
[1768271063684,0.93408486,3106.3,3105.4,0.83043691]
[1768271063887,0.92300799,3106.2,3105.4,0.83043691]
[1768271064086,0.92300799,3106.1,3105.4,0.83043691]
[1768271064383,0.92300799,3106.0,3105.4,0.83043691]
[1768271064586,0.93408486,3106.3,3105.4,0.83043691]
[1768271064784,0.92297833,3106.2,3105.4,0.83043691]
[1768271064987,0.92297833,3106.1,3105.4,0.83043691]
[1768271065185,0.92297833,3106.0,3105.4,0.83043691]
[1768271065386,0.93408486,3106.3,3105.4,0.83043691]
[1768271065579,0.92295149,3106.2,3105.4,0.83043691]
[1768271065782,0.92295149,3106.1,3105.2,0.83043691]
[1768271065987,0.92295149,3106.0,3105.2,0.83043691]
[1768271066188,0.93408486,3106.3,3105.2,0.83043691]
[1768271066487,0.92297111,3106.2,3105.2,0.83043691]
[1768271066686,0.92297111,3106.1,3105.2,0.83043691]
[1768271066888,0.92297111,3106.0,3105.2,0.83043691]
[1768271067088,0.93408486,3106.3,3105.2,0.83043691]
[1768271067281,0.92295623,3106.2,3105.2,0.83043691]
[1768271067483,0.92295623,3106.1,3105.2,0.83043691]
[1768271067682,0.93408486,3106.3,3105.2,0.83043691]
[1768271067993,0.9229313,3106.2,3105.2,0.83043691]
[1768271068190,0.9229313,3106.1,3105.2,0.83043691]
[1768271068391,0.93408486,3106.3,3105.2,0.83043691]
[1768271068694,0.92294537,3106.2,3105.2,0.83043691]
[1768271068888,0.92294537,3106.1,3105.2,0.83043691]
[1768271069091,0.93408486,3106.3,3105.2,0.83043691]
[1768271069289,0.92294035,3106.2,3105.2,0.83043691]
[1768271069489,0.92294035,3106.1,3105.2,0.83043691]
[1768271069787,0.93408486,3106.3,3105.2,0.83043691]
[1768271069987,0.92296479,3106.2,3105.2,0.83043691]
[1768271070285,0.92296479,3106.1,3105.2,0.83043691]
[1768271070481,0.93408486,3106.3,3105.2,0.83043691]
[1768271070687,0.92298794,3106.2,3105.2,0.83043691]
[1768271070887,0.92298794,3106.1,3105.2,0.83043691]
[1768271071087,0.93408486,3106.3,3105.2,0.83043691]
[1768271071292,0.92297775,3106.2,3105.2,0.83043691]
[1768271071493,0.92297775,3106.1,3105.2,0.83043691]
[1768271071798,0.93408486,3106.3,3105.2,0.83043691]
[1768271072094,0.92301025,3106.2,3105.2,0.83043691]
[1768271072293,0.92301025,3106.1,3105.2,0.83043691]
[1768271072494,0.93408486,3106.3,3105.2,0.83043691]
[1768271072797,0.92304942,3106.2,3105.2,0.83043691]
[1768271072994,0.92304942,3106.1,3105.2,0.83043691]
[1768271073197,0.93408486,3106.3,3105.2,0.83043691]
[1768271073497,0.92309483,3106.2,3105.2,0.83043691]
[1768271073682,0.92309483,3106.1,3105.2,0.83043691]
[1768271073888,0.93408486,3106.3,3105.2,0.83043691]
[1768271074189,0.92309483,3106.2,3105.2,0.83043691]
[1768271074393,0.92309483,3106.1,3105.2,0.83043691]
[1768271074694,0.93408486,3106.3,3105.2,0.83043691]
[1768271074995,0.92314603,3106.2,3105.2,0.83043691]
[1768271075195,0.92314603,3106.1,3105.2,0.83043691]
[1768271078398,0.92314603,3106.1,3105.1,0.83043691]
[1768271078593,0.83043691,3106.0,3105.1,0.83043691]
[1768271078991,0.83043691,3105.6,3104.9,0.00482827]
[1768271079693,0.83043691,3105.6,3103.7,7.43213174]
[1768271079694,0.92354164,3105.5,3104.6,0.83043691]
[1768271079897,0.92354164,3105.5,3103.7,0.16129]
[1768271079898,0.92354164,3105.4,3104.8,0.83043691]
[1768271080101,1.529,3105.7,3104.8,0.83043691]
[1768271080291,0.92356184,3105.6,3104.8,0.83043691]
[1768271080492,0.92356184,3105.5,3104.8,0.83043691]
[1768271080690,0.92356184,3105.4,3104.8,0.83353937]
[1768271080893,1.529,3105.7,3104.8,0.83353937]
[1768271081093,0.92337446,3105.6,3104.8,0.83353937]
[1768271081294,0.92337446,3105.5,3104.8,0.83353937]
[1768271081495,1.529,3105.7,3104.8,0.83353937]
[1768271081695,0.9232562,3105.6,3104.8,0.83353937]
[1768271081996,0.9232562,3105.5,3104.8,0.83353937]
[1768271082196,1.529,3105.7,3104.8,0.83353937]
[1768271082398,0.92325548,3105.6,3104.8,0.83353937]
[1768271082594,0.92325548,3105.5,3104.8,0.83353937]
[1768271082798,1.529,3105.7,3104.8,0.83353937]
[1768271083000,0.92316936,3105.6,3104.8,0.83353937]
[1768271083200,0.92316936,3105.5,3104.8,0.83353937]
[1768271083502,1.529,3105.7,3104.8,0.83353937]
[1768271083701,0.92312614,3105.6,3104.8,0.83353937]
[1768271084001,0.92312614,3105.5,3104.8,0.83353937]
[1768271084196,1.529,3105.7,3104.8,0.83353937]
[1768271084501,0.92312604,3105.6,3104.8,0.83353937]
[1768271084798,0.92312604,3105.5,3104.8,0.83353937]
[1768271085001,1.529,3105.7,3104.8,0.83353937]
[1768271085198,0.92312077,3105.6,3104.8,0.83353937]
[1768271085399,0.92312077,3105.5,3104.8,0.83353937]
[1768271085601,1.529,3105.7,3104.8,0.83353937]
[1768271085796,0.92299242,3105.6,3104.8,0.83353937]
[1768271086002,0.92299242,3105.5,3104.8,0.83353937]
[1768271086202,1.529,3105.7,3104.8,0.83353937]
[1768271086403,0.92262079,3105.6,3104.8,0.83353937]
[1768271086702,0.92262079,3105.5,3104.8,0.83353937]
[1768271086895,1.529,3105.7,3104.8,0.83353937]
[1768271087096,0.92254494,3105.6,3104.8,0.83353937]
[1768271087399,0.92254494,3105.5,3104.8,0.00310246]
[1768271087599,1.529,3105.7,3104.8,0.00310246]
[1768271087800,0.9224503,3105.6,3104.8,0.00310246]
[1768271088097,0.9224503,3105.5,3104.8,0.00310246]
[1768271088299,1.529,3105.7,3104.8,0.00310246]
[1768271088500,0.92237076,3105.6,3104.8,0.00310246]
[1768271088701,0.92237076,3105.5,3104.8,0.00310246]
[1768271088899,1.529,3105.7,3104.8,0.00310246]
[1768271089101,0.92237076,3105.6,3104.8,0.00310246]
[1768271089399,0.92237076,3105.5,3104.8,0.00310246]
[1768271089600,1.529,3105.7,3104.8,0.00310246]
[1768271089802,0.92229031,3105.6,3104.8,0.00310246]
[1768271090102,0.92229031,3105.5,3104.8,0.00310246]
[1768271090297,1.529,3105.7,3104.8,0.00310246]
[1768271090497,0.92222102,3105.6,3104.8,0.00310246]
[1768271090700,0.92222102,3105.5,3104.8,0.00310246]
[1768271090897,1.529,3105.7,3104.8,0.00310246]
[1768271091096,0.92222102,3105.6,3104.8,0.00310246]
[1768271091300,0.92222102,3105.5,3104.8,0.00310246]
[1768271091498,1.529,3105.7,3104.8,0.00310246]
[1768271091699,0.92216351,3105.6,3104.8,0.00310246]
[1768271091902,0.92216351,3105.5,3104.8,0.00310246]
[1768271092105,1.529,3105.7,3104.8,0.00310246]
[1768271092305,0.92216351,3105.6,3104.8,0.00310246]
[1768271092608,0.92216351,3105.5,3104.8,0.00310246]
[1768271092806,5.18023203,3105.7,3104.8,0.00310246]
[1768271093107,0.92211592,3105.6,3104.8,0.00310246]
[1768271093399,0.92211592,3105.5,3104.8,0.00310246]
[1768271093605,5.18023203,3105.7,3104.8,0.00310246]
[1768271093809,0.92209148,3105.6,3104.8,0.00310246]
[1768271094007,0.92209148,3105.5,3104.8,0.00310246]
[1768271094206,5.18023203,3105.7,3104.8,0.00310246]
[1768271094407,0.92209148,3105.6,3104.8,0.00310246]
[1768271094608,0.92209148,3105.5,3104.8,0.00310246]
[1768271094801,5.18023203,3105.7,3104.8,0.00310246]
[1768271095005,0.92207748,3105.6,3104.8,0.00310246]
[1768271095215,0.92207748,3105.5,3104.8,0.00310246]
[1768271095405,5.18023203,3105.7,3104.8,0.00310246]
[1768271095605,0.92207731,3105.6,3104.8,0.00310246]
[1768271095906,0.92207731,3105.5,3104.8,0.00310246]
[1768271096105,5.18023203,3105.7,3104.8,0.00310246]
[1768271096312,0.92207674,3105.6,3104.8,0.00310246]
[1768271096503,0.92207674,3105.5,3104.8,0.00310246]
[1768271096703,5.18023203,3105.7,3104.8,0.00310246]
[1768271096897,0.922073,3105.6,3104.8,0.00310246]
[1768271097103,0.922073,3105.5,3104.8,0.00310246]
[1768271097306,5.18023203,3105.7,3104.8,0.00310246]
[1768271097511,0.92208051,3105.6,3104.8,0.00310246]
[1768271097720,0.92208051,3105.5,3104.8,0.00310246]
[1768271097907,5.18023203,3105.7,3104.8,0.00310246]
[1768271098199,0.92208051,3105.6,3104.8,0.00310246]
[1768271098401,0.92208051,3105.5,3104.8,0.00310246]
[1768271098708,5.18023203,3105.7,3104.8,0.00310246]
[1768271098913,4.5733592,3105.6,3104.8,0.00310246]
[1768271099111,0.92212717,3105.5,3104.8,0.00310246]
[1768271099410,3.65123203,3105.6,3104.8,0.00310246]
[1768271099608,0.92218801,3105.5,3104.8,0.00310246]
[1768271099801,3.65123203,3105.6,3104.8,0.00310246]
[1768271100003,0.92218804,3105.5,3104.8,0.00310246]
[1768271100204,0.83094179,3105.5,3103.8,3.562987]
[1768271100409,4.48217382,3105.2,3103.7,0.83094179]
[1768271100916,3.65123203,3105.2,3103.7,0.83094179]
[1768271101214,3.65123203,3105.2,3103.7,0.83368781]
[1768271102517,0.00482827,3104.8,3103.7,0.83368781]
[1768271114029,0.00482827,3104.8,3104.3,0.83094179]
[1768271114231,0.16119,3105.5,3104.3,0.83094179]
[1768271114436,0.92318036,3105.4,3104.3,0.83094179]
[1768271114624,0.92318036,3105.3,3104.3,0.83094179]
[1768271114825,0.92318036,3105.2,3104.3,0.83094179]
[1768271115032,0.92318036,3105.1,3104.3,0.83094179]
[1768271115234,0.16119,3105.5,3104.3,0.83094179]
[1768271115424,0.92320408,3105.4,3104.3,0.83094179]
[1768271115628,0.92320408,3105.3,3104.3,0.83094179]
[1768271115826,0.92320408,3105.2,3104.3,0.83094179]
[1768271116027,0.16119,3105.5,3104.3,0.83094179]
[1768271116028,0.92320408,3105.1,3104.3,0.83094179]
[1768271116232,0.16119,3105.5,3104.3,0.83094179]
[1768271116431,0.92305016,3105.4,3104.3,0.83094179]
[1768271116737,0.92305016,3105.3,3104.3,0.83094179]
[1768271116939,0.92305016,3105.2,3104.3,0.83094179]
[1768271117238,0.92305016,3105.1,3104.3,0.83094179]
[1768271117433,3.77683405,3105.5,3104.3,0.83094179]
[1768271117633,0.92308121,3105.4,3104.3,0.83094179]
[1768271117933,0.92308121,3105.3,3104.3,0.83094179]
[1768271118132,0.92308121,3105.2,3104.3,0.83094179]
[1768271118327,0.92308121,3105.1,3104.3,0.83094179]
[1768271118532,3.77683405,3105.5,3104.3,0.83094179]
[1768271118734,0.9231124,3105.4,3104.3,0.83094179]
[1768271118933,0.9231124,3105.3,3104.3,0.83094179]
[1768271119135,0.9231124,3105.2,3104.3,0.83094179]
[1768271119341,0.9231124,3105.1,3104.3,0.83094179]
[1768271119642,3.77683405,3105.5,3104.3,0.83094179]
[1768271119842,0.92315017,3105.4,3104.3,0.83094179]
[1768271120036,0.92315017,3105.3,3104.3,0.83094179]
[1768271120238,0.92315017,3105.2,3104.3,0.83094179]
[1768271120535,0.92315017,3105.1,3104.3,0.83094179]
[1768271120736,3.61564405,3105.5,3104.3,0.83094179]
[1768271120937,0.92319414,3105.4,3104.3,0.83094179]
[1768271121138,0.92319414,3105.3,3104.3,0.83094179]
[1768271121336,0.92319414,3105.2,3104.3,0.83094179]
[1768271121536,0.92319414,3105.1,3104.3,0.83094179]
[1768271121738,3.61564405,3105.5,3104.3,0.83094179]
[1768271121940,0.92324616,3105.4,3104.2,0.83094179]
[1768271122140,0.92324616,3105.3,3104.2,0.83094179]
[1768271122341,0.92324616,3105.2,3104.2,0.83094179]
[1768271122541,0.92324616,3105.1,3104.2,0.83094179]
[1768271122744,3.61564405,3105.5,3104.2,0.83094179]
[1768271122942,0.92330893,3105.4,3104.2,0.83094179]
[1768271123140,0.92330893,3105.3,3104.2,0.83094179]
[1768271123346,0.92330893,3105.2,3104.2,0.83094179]
[1768271123545,0.92330893,3105.1,3104.2,0.83094179]
[1768271123746,5.15564405,3105.5,3104.2,0.83094179]
[1768271124047,0.9233783,3105.4,3104.2,0.83094179]
[1768271124247,0.9233783,3105.3,3104.2,0.83094179]
[1768271124446,0.9233783,3105.2,3104.2,0.83094179]
[1768271124648,0.9233783,3105.1,3104.2,0.83094179]
[1768271124848,5.15564405,3105.5,3104.2,0.83094179]
[1768271125039,0.92346254,3105.4,3104.2,0.83094179]
[1768271125240,0.92346254,3105.3,3104.2,0.83094179]
[1768271125439,0.92346254,3105.2,3104.2,0.83094179]
[1768271125646,0.92346254,3105.1,3104.2,0.83094179]
[1768271125848,5.15564405,3105.5,3104.2,0.83094179]
[1768271126048,0.92355854,3105.4,3104.2,0.83094179]
[1768271126244,0.92355854,3105.3,3104.2,0.83094179]
[1768271126440,0.92355854,3105.2,3104.2,0.83094179]
[1768271126643,0.92355854,3105.1,3104.2,0.83094179]
[1768271126946,5.15564405,3105.5,3104.2,0.83094179]
[1768271127149,0.92367227,3105.4,3104.2,0.83094179]
[1768271127343,0.92367227,3105.3,3104.2,0.83094179]
[1768271127540,0.92367227,3105.2,3104.2,0.83094179]
[1768271127741,0.92367227,3105.1,3104.2,0.83094179]
[1768271127937,5.15564405,3105.5,3104.2,0.83094179]
[1768271128149,0.92381172,3105.4,3104.2,0.83094179]
[1768271128342,0.92381172,3105.3,3104.2,0.83094179]
[1768271128543,0.92381172,3105.2,3104.2,0.83094179]
[1768271128744,0.92381172,3105.1,3104.2,0.83094179]
[1768271129050,0.92381172,3105.0,3104.2,0.83094179]
[1768271129249,5.15564405,3105.5,3104.2,0.83094179]
[1768271129452,1.27407434,3105.4,3104.2,0.83094179]
[1768271129649,0.92428661,3105.3,3104.2,0.83094179]
[1768271129850,0.92428661,3105.2,3104.2,0.83094179]
[1768271130048,0.92428661,3105.1,3104.2,0.83094179]
[1768271130243,0.92428661,3105.0,3104.2,0.83094179]
[1768271130443,3.61564405,3105.4,3104.2,0.83094179]
[1768271130643,0.92428939,3105.3,3104.2,0.83094179]
[1768271130850,0.92428939,3105.2,3104.2,0.83094179]
[1768271131046,3.61564405,3105.4,3104.2,0.83094179]
[1768271131047,0.92428939,3105.1,3104.2,0.83094179]
[1768271131243,0.92428939,3105.0,3104.2,0.83094179]
[1768271131439,3.61564405,3105.4,3104.2,0.83094179]
[1768271131743,0.92429274,3105.3,3104.2,0.83094179]
[1768271131943,0.92429274,3105.2,3104.2,0.83094179]
[1768271132151,0.92429274,3105.1,3104.2,0.83094179]
[1768271132338,0.92429274,3105.0,3104.2,0.83094179]
[1768271132545,3.61564405,3105.4,3104.2,0.83094179]
[1768271132742,0.92428985,3105.3,3104.2,0.83094179]
[1768271132942,0.92428985,3105.2,3104.2,0.83094179]
[1768271133151,0.92428985,3105.1,3104.2,0.83094179]
[1768271133348,0.92428985,3105.0,3104.2,0.83094179]
[1768271133549,3.61564405,3105.4,3104.2,0.83094179]
[1768271133751,0.92429128,3105.3,3104.2,0.83094179]
[1768271133949,0.92429128,3105.2,3104.2,0.83094179]
[1768271134153,0.92429128,3105.1,3104.2,0.83094179]
[1768271134352,0.92429128,3105.0,3104.2,0.83094179]
[1768271134552,3.61564405,3105.4,3104.2,0.83094179]
[1768271134754,0.9242935,3105.3,3104.2,0.83094179]
[1768271134948,0.9242935,3105.2,3104.2,0.83094179]
[1768271135155,0.9242935,3105.1,3104.2,0.83094179]
[1768271135453,0.9242935,3105.0,3104.2,0.83094179]
[1768271135653,3.61564405,3105.4,3104.2,0.83094179]
[1768271135854,4.28402524,3105.3,3103.9,4.32452632]
[1768271136054,0.92429915,3105.2,3103.9,4.32452632]
[1768271136251,0.92429915,3105.1,3103.9,4.32452632]
[1768271136449,0.92429915,3105.0,3103.9,4.32452632]
[1768271136650,3.35972609,3105.3,3103.9,4.32452632]
[1768271136850,0.9243074,3105.2,3103.9,4.32452632]
[1768271137052,0.9243074,3105.1,3103.9,4.32452632]